[Event "Live Chess"]
[Site "Chess.com"]
[Date "2024.06.01"]
[Round "-"]
[White "Grieve72"]
[Black "Eva3337"]
[Result "1-0"]
[WhiteElo "2650"]
[BlackElo "1127"]
[TimeControl "300"]
[EndTime "9:17:35 PDT"]
[Termination "Grieve72 won by resignation"]

1. e4 {[%clk 0:04:59.1]} 1... Nc6 {[%clk 0:04:54.8]} 2. Nf3 {[%clk 0:04:58.2]}
2... d6 {[%clk 0:04:52.1]} 3. d4 {[%clk 0:04:57.7]} 3... Bg4 {[%clk 0:04:50.6]}
4. Nc3 {[%clk 0:04:53.5]} 4... Nf6 {[%clk 0:04:40.8]} 5. Bb5 {[%clk 0:04:50.5]}
5... Qd7 {[%clk 0:04:35]} 6. d5 {[%clk 0:04:47.5]} 6... a6 {[%clk 0:04:30.4]} 7.
dxc6 {[%clk 0:04:46.3]} 7... bxc6 {[%clk 0:04:26.9]} 8. Ba4 {[%clk 0:04:45.8]}
8... Qe6 {[%clk 0:04:18.4]} 9. Bxc6+ {[%clk 0:04:43.9]} 9... Kd8 {[%clk
0:04:16.8]} 10. Bxa8 {[%clk 0:04:43.8]} 10... Nxe4 {[%clk 0:04:14.3]} 11. Nxe4
{[%clk 0:04:43.1]} 11... Qxe4+ {[%clk 0:04:12.2]} 12. Bxe4 {[%clk 0:04:43]} 1-0

[Event "Live Chess"]
[Site "Chess.com"]
[Date "2024.06.01"]
[Round "-"]
[White "EdenHazard8"]
[Black "Trecregin"]
[Result "0-1"]
[WhiteElo "2182"]
[BlackElo "1798"]
[TimeControl "300"]
[EndTime "9:17:36 PDT"]
[Termination "Trecregin won on time"]

1. e4 {[%clk 0:04:59]} 1... Nf6 {[%clk 0:04:58.4]} 2. e5 {[%clk 0:04:58]} 2...
Ng8 {[%clk 0:04:57.8]} 3. d4 {[%clk 0:04:56.8]} 3... d6 {[%clk 0:04:57]} 4. exd6
{[%clk 0:04:55.5]} 4... exd6 {[%clk 0:04:56.3]} 5. Nf3 {[%clk 0:04:55.1]} 5...
d5 {[%clk 0:04:55.9]} 6. Bd3 {[%clk 0:04:53.9]} 6... Nf6 {[%clk 0:04:55.3]} 7.
O-O {[%clk 0:04:53.5]} 7... Bd6 {[%clk 0:04:54.6]} 8. Re1+ {[%clk 0:04:53]} 8...
Be6 {[%clk 0:04:54]} 9. Ng5 {[%clk 0:04:51.2]} 9... O-O {[%clk 0:04:53]} 10.
Nxe6 {[%clk 0:04:49.6]} 10... fxe6 {[%clk 0:04:51.9]} 11. Rxe6 {[%clk
0:04:46.1]} 11... Qd7 {[%clk 0:04:50.9]} 12. Qe2 {[%clk 0:04:33.6]} 12... Nc6
{[%clk 0:04:45.5]} 13. c3 {[%clk 0:04:26.7]} 13... Rae8 {[%clk 0:04:44.5]} 14.
Rxe8 {[%clk 0:04:15.4]} 14... Rxe8 {[%clk 0:04:43.1]} 15. Be3 {[%clk 0:03:54.9]}
15... Ng4 {[%clk 0:04:35.5]} 16. h3 {[%clk 0:03:53.3]} 16... Nxe3 {[%clk
0:03:58.1]} 17. fxe3 {[%clk 0:03:51.6]} 17... Qe7 {[%clk 0:03:57.4]} 18. Nd2
{[%clk 0:03:27.7]} 18... Qxe3+ {[%clk 0:03:44.5]} 19. Qxe3 {[%clk 0:03:25.5]}
19... Rxe3 {[%clk 0:03:43.9]} 20. Bf1 {[%clk 0:03:23.4]} 20... Ne7 {[%clk
0:03:34.6]} 21. Nf3 {[%clk 0:03:07.2]} 21... Bg3 {[%clk 0:03:30.7]} 22. Rd1
{[%clk 0:02:57]} 22... Ng6 {[%clk 0:03:27]} 23. Rd3 {[%clk 0:02:41.3]} 23... Re7
{[%clk 0:03:10.8]} 24. Nd2 {[%clk 0:02:29.5]} 24... Bd6 {[%clk 0:03:03]} 25. Rf3
{[%clk 0:02:14.1]} 25... Re1 {[%clk 0:02:56.5]} 26. Kf2 {[%clk 0:02:08.5]} 26...
Rc1 {[%clk 0:02:49]} 27. g3 {[%clk 0:01:41.1]} 27... Rc2 {[%clk 0:02:34.9]} 28.
Ke3 {[%clk 0:01:38.4]} 28... Rxb2 {[%clk 0:02:32.4]} 29. c4 {[%clk 0:01:27.9]}
29... c6 {[%clk 0:02:17.9]} 30. cxd5 {[%clk 0:01:06.7]} 30... cxd5 {[%clk
0:02:16.5]} 31. Bd3 {[%clk 0:00:48.6]} 31... Be7 {[%clk 0:02:05.9]} 32. h4
{[%clk 0:00:42]} 32... Nf8 {[%clk 0:01:52.3]} 33. a4 {[%clk 0:00:34]} 33... Ra2
{[%clk 0:01:45.9]} 34. Ke2 {[%clk 0:00:21.2]} 34... g6 {[%clk 0:01:40.9]} 35.
Kd1 {[%clk 0:00:18.1]} 35... Kg7 {[%clk 0:01:39.4]} 36. Re3 {[%clk 0:00:16.9]}
36... Bf6 {[%clk 0:01:34.6]} 37. Nf3 {[%clk 0:00:15.9]} 37... Ra3 {[%clk
0:01:30.5]} 38. g4 {[%clk 0:00:14.7]} 38... Ra1+ {[%clk 0:01:25]} 39. Ke2 {[%clk
0:00:13.8]} 39... Ra2+ {[%clk 0:01:24.3]} 40. Kd1 {[%clk 0:00:12.7]} 40... Rxa4
{[%clk 0:01:20.1]} 41. g5 {[%clk 0:00:11.9]} 41... Bxd4 {[%clk 0:01:19.1]} 42.
Re7+ {[%clk 0:00:10]} 42... Kg8 {[%clk 0:01:16.5]} 43. Rxb7 {[%clk 0:00:09.9]}
43... Bb6 {[%clk 0:01:10.9]} 44. Bb5 {[%clk 0:00:08.3]} 44... Ne6 {[%clk
0:01:07]} 45. Bc6 {[%clk 0:00:06.8]} 45... Ra1+ {[%clk 0:01:04.5]} 46. Ke2
{[%clk 0:00:06]} 46... Nf4+ {[%clk 0:01:03.5]} 47. Kd2 {[%clk 0:00:04.5]} 47...
Ra2+ {[%clk 0:01:02.2]} 48. Kc3 {[%clk 0:00:03.8]} 48... Ba5+ {[%clk 0:01:00.8]}
49. Kb3 {[%clk 0:00:03]} 49... Rf2 {[%clk 0:00:59.5]} 50. Ne5 {[%clk 0:00:01.8]}
50... Bd8 {[%clk 0:00:51.3]} 51. Rb8 {[%clk 0:00:01.1]} 51... Kg7 {[%clk
0:00:49.5]} 52. Rxd8 {[%clk 0:00:01]} 52... Rf3+ {[%clk 0:00:48.4]} 53. Ka4
{[%clk 0:00:00.1]} 53... Nd3 {[%clk 0:00:46.2]} 0-1

[Event "Live Chess"]
[Site "Chess.com"]
[Date "2024.06.01"]
[Round "-"]
[White "Crowded_House"]
[Black "Richardallis"]
[Result "0-1"]
[WhiteElo "1740"]
[BlackElo "1927"]
[TimeControl "300"]
[EndTime "9:17:37 PDT"]
[Termination "Richardallis won by resignation"]

1. d4 {[%clk 0:04:58.5]} 1... c5 {[%clk 0:04:58.7]} 2. c3 {[%clk 0:04:56.2]}
2... cxd4 {[%clk 0:04:57.1]} 3. Qxd4 {[%clk 0:04:54.6]} 3... f5 {[%clk
0:04:56.7]} 4. e3 {[%clk 0:04:50.8]} 4... Nf6 {[%clk 0:04:55.4]} 5. Bd3 {[%clk
0:04:46.8]} 5... d5 {[%clk 0:04:53.8]} 6. Nf3 {[%clk 0:04:39.5]} 6... Nc6 {[%clk
0:04:52.8]} 7. Qa4 {[%clk 0:04:35.6]} 7... Bd7 {[%clk 0:04:50.4]} 8. Qc2 {[%clk
0:04:33.2]} 8... e6 {[%clk 0:04:48.4]} 9. Nbd2 {[%clk 0:04:29.6]} 9... Bd6
{[%clk 0:04:47.2]} 10. O-O {[%clk 0:04:27.9]} 10... O-O {[%clk 0:04:45.9]} 11.
b3 {[%clk 0:04:25.9]} 11... Ne4 {[%clk 0:04:43.6]} 12. Bb5 {[%clk 0:04:12.7]}
12... Rc8 {[%clk 0:04:41.8]} 13. Qb2 {[%clk 0:04:04.2]} 13... Ne5 {[%clk
0:04:37.5]} 14. Bxd7 {[%clk 0:04:01.7]} 14... Qxd7 {[%clk 0:04:36.3]} 15. Nxe5
{[%clk 0:03:55.8]} 15... Bxe5 {[%clk 0:04:34.7]} 16. Qa3 {[%clk 0:03:36.4]}
16... Nxc3 {[%clk 0:04:31]} 17. Bb2 {[%clk 0:03:31]} 17... Nb5 {[%clk
0:04:28.1]} 18. Qb4 {[%clk 0:03:21.2]} 18... Bxb2 {[%clk 0:04:26.3]} 19. Rab1
{[%clk 0:03:20.3]} 19... Bc3 {[%clk 0:04:25]} 0-1

[Event "Live Chess"]
[Site "Chess.com"]
[Date "2024.06.01"]
[Round "-"]
[White "karina55"]
[Black "Berdgross"]
[Result "1-0"]
[WhiteElo "1735"]
[BlackElo "570"]
[TimeControl "300"]
[EndTime "9:17:44 PDT"]
[Termination "karina55 won by resignation"]

1. e4 {[%clk 0:04:57.8]} 1... e5 {[%clk 0:04:58.1]} 2. Nc3 {[%clk 0:04:55.5]}
2... d6 {[%clk 0:04:57.1]} 3. Bc4 {[%clk 0:04:54.3]} 3... Nf6 {[%clk 0:04:54.3]}
4. a4 {[%clk 0:04:52.8]} 4... a6 {[%clk 0:04:52.3]} 5. d3 {[%clk 0:04:51.8]}
5... Nc6 {[%clk 0:04:50]} 6. f4 {[%clk 0:04:47.3]} 6... h6 {[%clk 0:04:45.9]} 7.
Nf3 {[%clk 0:04:42.4]} 7... g5 {[%clk 0:04:39.6]} 8. fxg5 {[%clk 0:04:39.3]}
8... hxg5 {[%clk 0:04:37.6]} 9. Bxg5 {[%clk 0:04:38.4]} 9... Be7 {[%clk
0:04:35.9]} 10. O-O {[%clk 0:04:35.2]} 10... Ng4 {[%clk 0:04:30.6]} 11. Bxe7
{[%clk 0:04:25]} 11... Qxe7 {[%clk 0:04:28]} 12. Nd5 {[%clk 0:04:21.4]} 12...
Qd7 {[%clk 0:04:13.3]} 13. Ng5 {[%clk 0:04:11.4]} 13... Nxh2 {[%clk 0:03:58.1]}
14. Nf6+ {[%clk 0:04:07.6]} 14... Ke7 {[%clk 0:03:50.9]} 15. Nxd7 {[%clk
0:04:06.2]} 15... Bxd7 {[%clk 0:03:49.7]} 16. Rxf7+ {[%clk 0:04:03.5]} 16... Ke8
{[%clk 0:03:33.4]} 17. Rf2 {[%clk 0:03:22.8]} 17... Ng4 {[%clk 0:03:27.8]} 18.
Rf3 {[%clk 0:03:10]} 18... Nd4 {[%clk 0:03:00.6]} 19. c3 {[%clk 0:03:00.1]}
19... Nxf3+ {[%clk 0:02:57.2]} 20. Qxf3 {[%clk 0:02:58.5]} 20... Nh2 {[%clk
0:02:43.2]} 21. Qf7+ {[%clk 0:02:54.7]} 21... Kd8 {[%clk 0:02:36.1]} 22. Qf6+
{[%clk 0:02:52.3]} 22... Ke8 {[%clk 0:02:32.6]} 23. Qxh8+ {[%clk 0:02:37.5]} 1-0

[Event "Live Chess"]
[Site "Chess.com"]
[Date "2024.06.01"]
[Round "-"]
[White "Mangoalo"]
[Black "TheRedDrag"]
[Result "0-1"]
[WhiteElo "996"]
[BlackElo "2184"]
[TimeControl "300"]
[EndTime "9:17:44 PDT"]
[Termination "TheRedDrag won by resignation"]

1. e4 {[%clk 0:04:58.7]} 1... e5 {[%clk 0:04:59]} 2. f4 {[%clk 0:04:58.4]} 2...
exf4 {[%clk 0:04:58.1]} 3. Nf3 {[%clk 0:04:58.1]} 3... g5 {[%clk 0:04:57.4]} 4.
Bc4 {[%clk 0:04:57.4]} 4... g4 {[%clk 0:04:56.8]} 5. O-O {[%clk 0:04:57]} 5...
gxf3 {[%clk 0:04:56]} 6. Qxf3 {[%clk 0:04:56.6]} 6... Qf6 {[%clk 0:04:53.5]} 7.
Bb3 {[%clk 0:04:51.5]} 7... Nc6 {[%clk 0:04:48.7]} 8. Nc3 {[%clk 0:04:49.6]}
8... Bh6 {[%clk 0:04:45.5]} 9. d3 {[%clk 0:04:36.5]} 9... Nd4 {[%clk 0:04:40.2]}
10. Qf2 {[%clk 0:04:32.5]} 10... c6 {[%clk 0:04:36]} 11. Bxf4 {[%clk 0:04:27.6]}
11... Bxf4 {[%clk 0:04:34.6]} 12. Qxf4 {[%clk 0:04:27.5]} 12... Qxf4 {[%clk
0:04:32.9]} 13. Rxf4 {[%clk 0:04:27.4]} 13... Ne6 {[%clk 0:04:32.4]} 14. Rf2
{[%clk 0:04:21.7]} 14... Ne7 {[%clk 0:04:30.2]} 15. Bxe6 {[%clk 0:04:19.9]}
15... dxe6 {[%clk 0:04:29.1]} 16. Raf1 {[%clk 0:04:17.9]} 16... f5 {[%clk
0:04:26.9]} 17. exf5 {[%clk 0:04:15.8]} 17... Nxf5 {[%clk 0:04:26.8]} 18. Ne4
{[%clk 0:04:15]} 18... Ke7 {[%clk 0:04:24.6]} 19. Ng3 {[%clk 0:04:11]} 19...
Nxg3 {[%clk 0:04:22]} 20. hxg3 {[%clk 0:04:10.9]} 20... Kd6 {[%clk 0:04:17.6]}
21. c4 {[%clk 0:04:08.9]} 21... b5 {[%clk 0:04:14.6]} 22. cxb5 {[%clk
0:04:07.5]} 22... cxb5 {[%clk 0:04:14.5]} 23. b4 {[%clk 0:04:06.3]} 23... Bb7
{[%clk 0:04:13.2]} 24. Kh2 {[%clk 0:03:54.4]} 24... Rhg8 {[%clk 0:04:10.4]} 25.
Rf7 {[%clk 0:03:47.8]} 25... Bd5 {[%clk 0:04:07.4]} 26. R1f6 {[%clk 0:03:45.7]}
26... Bxa2 {[%clk 0:03:59.1]} 27. Rxh7 {[%clk 0:03:41.2]} 27... Rh8 {[%clk
0:03:57.6]} 28. Rxh8 {[%clk 0:03:39.2]} 28... Rxh8+ {[%clk 0:03:57.4]} 29. Kg1
{[%clk 0:03:38.6]} 29... Rg8 {[%clk 0:03:54.8]} 30. Kf2 {[%clk 0:03:34.9]} 30...
Rg7 {[%clk 0:03:52.9]} 31. d4 {[%clk 0:03:32.2]} 31... Kd5 {[%clk 0:03:51.6]}
32. Rf7 {[%clk 0:03:24.5]} 32... Rxf7+ {[%clk 0:03:49.7]} 0-1

[Event "Live Chess"]
[Site "Chess.com"]
[Date "2024.06.01"]
[Round "-"]
[White "gmnorfolk"]
[Black "Pizzaman313"]
[Result "1-0"]
[WhiteElo "2138"]
[BlackElo "1193"]
[TimeControl "300"]
[EndTime "9:17:46 PDT"]
[Termination "gmnorfolk won by resignation"]

1. c4 {[%clk 0:04:57.4]} 1... e5 {[%clk 0:04:57.2]} 2. Nc3 {[%clk 0:04:47.7]}
2... Nc6 {[%clk 0:04:54.7]} 3. Nf3 {[%clk 0:04:43.1]} 3... Bc5 {[%clk
0:04:48.2]} 4. e3 {[%clk 0:04:39.6]} 4... d6 {[%clk 0:04:40.1]} 5. d4 {[%clk
0:04:37.3]} 5... exd4 {[%clk 0:04:38.8]} 6. exd4 {[%clk 0:04:21]} 6... Bb4
{[%clk 0:04:30.3]} 7. Bd3 {[%clk 0:04:19]} 7... Bg4 {[%clk 0:04:23.6]} 8. Be3
{[%clk 0:04:13.9]} 8... Nf6 {[%clk 0:04:19.4]} 9. Qc2 {[%clk 0:04:08.7]} 9...
O-O {[%clk 0:04:14.2]} 10. O-O-O {[%clk 0:04:04.4]} 10... a5 {[%clk 0:03:58.6]}
11. h3 {[%clk 0:03:57.9]} 11... Bd7 {[%clk 0:03:56.4]} 12. Bg5 {[%clk
0:03:53.3]} 12... h6 {[%clk 0:03:49.1]} 13. Bh4 {[%clk 0:03:52.1]} 13... Bxc3
{[%clk 0:03:43.8]} 14. bxc3 {[%clk 0:03:47.9]} 14... Na7 {[%clk 0:03:29.7]} 15.
g4 {[%clk 0:03:45.8]} 15... b5 {[%clk 0:03:25.2]} 16. g5 {[%clk 0:03:42.3]}
16... bxc4 {[%clk 0:03:12.5]} 17. Bxc4 {[%clk 0:03:32.8]} 17... hxg5 {[%clk
0:03:01.5]} 18. Bxg5 {[%clk 0:03:29.8]} 18... c6 {[%clk 0:02:33.6]} 19. Rhg1
{[%clk 0:03:24.4]} 19... d5 {[%clk 0:02:30.9]} 20. Bh6 {[%clk 0:03:23.1]} 20...
Ne8 {[%clk 0:02:13.1]} 21. Bxg7 {[%clk 0:02:43.7]} 21... Nxg7 {[%clk 0:02:10.3]}
22. Rxg7+ {[%clk 0:02:42.8]} 22... Kxg7 {[%clk 0:02:05.9]} 23. Rg1+ {[%clk
0:02:42]} 23... Kh6 {[%clk 0:01:17.8]} 24. Qd2+ {[%clk 0:02:37.3]} 24... Kh7
{[%clk 0:01:11]} 25. Bd3+ {[%clk 0:02:27.4]} 25... f5 {[%clk 0:01:06]} 26. Ng5+
{[%clk 0:02:23.3]} 26... Kh8 {[%clk 0:00:56.1]} 27. Qf4 {[%clk 0:02:15.4]} 27...
Qxg5 {[%clk 0:00:46.1]} 28. Qxg5 {[%clk 0:02:11.9]} 1-0

[Event "Live Chess"]
[Site "Chess.com"]
[Date "2024.06.01"]
[Round "-"]
[White "A3ndrey9"]
[Black "Bob2pen"]
[Result "0-1"]
[WhiteElo "1254"]
[BlackElo "1913"]
[TimeControl "300"]
[EndTime "9:17:58 PDT"]
[Termination "Bob2pen won by resignation"]

1. Nf3 {[%clk 0:04:53.4]} 1... Nf6 {[%clk 0:04:56]} 2. d4 {[%clk 0:04:47.8]}
2... c5 {[%clk 0:04:54]} 3. c4 {[%clk 0:04:46.3]} 3... cxd4 {[%clk 0:04:52.8]}
4. Nxd4 {[%clk 0:04:45.7]} 4... e5 {[%clk 0:04:51.9]} 5. Nb3 {[%clk 0:04:41.5]}
5... Nc6 {[%clk 0:04:49.9]} 6. g3 {[%clk 0:04:40.5]} 6... Bb4+ {[%clk
0:04:45.3]} 7. Bd2 {[%clk 0:04:38.2]} 7... O-O {[%clk 0:04:43]} 8. Bxb4 {[%clk
0:04:34.8]} 8... Nxb4 {[%clk 0:04:40.9]} 9. Bg2 {[%clk 0:04:32.8]} 9... d5
{[%clk 0:04:39.1]} 10. cxd5 {[%clk 0:04:31.1]} 10... Nfxd5 {[%clk 0:04:36.3]}
11. a3 {[%clk 0:04:21.8]} 11... Ne3 {[%clk 0:04:23.1]} 12. Qxd8 {[%clk
0:04:18.1]} 12... Nec2+ {[%clk 0:04:14.4]} 13. Kf1 {[%clk 0:04:07]} 13... Rxd8
{[%clk 0:04:13.3]} 14. Nc3 {[%clk 0:03:57.5]} 14... Nxa1 {[%clk 0:04:10.2]} 15.
Nxa1 {[%clk 0:03:56.6]} 15... Nc6 {[%clk 0:03:59]} 16. e4 {[%clk 0:03:53.6]}
16... Be6 {[%clk 0:03:57]} 17. Bf3 {[%clk 0:03:41.2]} 17... Rd2 {[%clk
0:03:54.1]} 18. Nd5 {[%clk 0:03:29.8]} 18... Nd4 {[%clk 0:03:48]} 19. Kg2 {[%clk
0:03:24.5]} 19... Nxf3 {[%clk 0:03:45.3]} 20. Kxf3 {[%clk 0:03:23.3]} 20... Bxd5
{[%clk 0:03:44.5]} 21. exd5 {[%clk 0:03:22]} 21... Rxd5 {[%clk 0:03:43.5]} 22.
Rc1 {[%clk 0:03:10]} 22... Rad8 {[%clk 0:03:41]} 23. Kg2 {[%clk 0:03:08.7]}
23... f6 {[%clk 0:03:38.5]} 24. Rc7 {[%clk 0:03:06.9]} 24... R5d7 {[%clk
0:03:37.1]} 25. Rc3 {[%clk 0:03:02.3]} 25... Kf7 {[%clk 0:03:35.9]} 26. Nb3
{[%clk 0:03:01.7]} 26... b6 {[%clk 0:03:34.3]} 27. Rf3 {[%clk 0:02:39.7]} 27...
Rd3 {[%clk 0:03:31.1]} 28. Nc1 {[%clk 0:02:06.7]} 28... Rxf3 {[%clk 0:03:28.1]}
29. Kxf3 {[%clk 0:02:06.6]} 29... Ke6 {[%clk 0:03:23.1]} 30. b4 {[%clk
0:02:02.8]} 30... Rd1 {[%clk 0:03:20.9]} 31. Ne2 {[%clk 0:01:53.9]} 31... Rd3+
{[%clk 0:03:18.8]} 32. Ke4 {[%clk 0:01:48.2]} 32... Rxa3 {[%clk 0:03:17.4]} 33.
f4 {[%clk 0:01:47.7]} 33... Ra2 {[%clk 0:03:12.3]} 34. f5+ {[%clk 0:01:43.7]}
34... Kd6 {[%clk 0:03:09.9]} 35. Nc3 {[%clk 0:01:39.1]} 35... Rxh2 {[%clk
0:03:07.4]} 36. Nb5+ {[%clk 0:01:37.3]} 36... Ke7 {[%clk 0:02:58.7]} 37. Nxa7
{[%clk 0:01:27.5]} 37... Rc2 {[%clk 0:02:56.2]} 38. b5 {[%clk 0:01:25.1]} 38...
Kd6 {[%clk 0:02:50]} 39. Kd3 {[%clk 0:01:11.6]} 39... Rc7 {[%clk 0:02:47.9]} 40.
Nc6 {[%clk 0:01:08.6]} 40... Rxc6 {[%clk 0:02:46.9]} 41. bxc6 {[%clk 0:01:08]}
41... Kxc6 {[%clk 0:02:46.2]} 42. Kc4 {[%clk 0:01:07.7]} 42... b5+ {[%clk
0:02:45.3]} 43. Kb4 {[%clk 0:01:06.9]} 43... e4 {[%clk 0:02:43.4]} 0-1

[Event "Live Chess"]
[Site "Chess.com"]
[Date "2024.06.01"]
[Round "-"]
[White "defenderalist"]
[Black "Pedrada88"]
[Result "0-1"]
[WhiteElo "1482"]
[BlackElo "2550"]
[TimeControl "300"]
[EndTime "9:17:58 PDT"]
[Termination "Pedrada88 won by resignation"]

1. e4 {[%clk 0:04:58.5]} 1... c6 {[%clk 0:04:58.7]} 2. d4 {[%clk 0:04:55.7]}
2... d5 {[%clk 0:04:58]} 3. Nc3 {[%clk 0:04:55.3]} 3... dxe4 {[%clk 0:04:57]} 4.
Nxe4 {[%clk 0:04:54.3]} 4... Bf5 {[%clk 0:04:56.6]} 5. Ng3 {[%clk 0:04:31.4]}
5... Bg6 {[%clk 0:04:55.5]} 6. Nf3 {[%clk 0:04:25.9]} 6... Nd7 {[%clk
0:04:53.7]} 7. c3 {[%clk 0:04:24.2]} 7... e6 {[%clk 0:04:52.9]} 8. Bd3 {[%clk
0:04:23]} 8... Qc7 {[%clk 0:04:50.7]} 9. h4 {[%clk 0:04:10.2]} 9... Ngf6 {[%clk
0:04:48.3]} 10. h5 {[%clk 0:03:57.3]} 10... Bxd3 {[%clk 0:04:46.8]} 11. Qxd3
{[%clk 0:03:56.1]} 11... c5 {[%clk 0:04:46.7]} 12. dxc5 {[%clk 0:03:52.6]} 12...
Bxc5 {[%clk 0:04:46.6]} 13. Be3 {[%clk 0:03:41.9]} 13... O-O-O {[%clk
0:04:42.2]} 14. Bxc5 {[%clk 0:03:40.1]} 14... Nxc5 {[%clk 0:04:42.1]} 15. Qe3
{[%clk 0:03:30]} 15... Ng4 {[%clk 0:04:37.8]} 16. Qg5 {[%clk 0:03:18.9]} 16...
Nd3+ {[%clk 0:04:35.4]} 17. Ke2 {[%clk 0:03:17.6]} 17... Ndxf2 {[%clk
0:04:28.1]} 18. Rhd1 {[%clk 0:03:11.7]} 18... Qxg3 {[%clk 0:04:24.9]} 0-1

[Event "Live Chess"]
[Site "Chess.com"]
[Date "2024.06.01"]
[Round "-"]
[White "LL220284LL"]
[Black "SirGerhard"]
[Result "0-1"]
[WhiteElo "2579"]
[BlackElo "2754"]
[TimeControl "300"]
[EndTime "9:18:10 PDT"]
[Termination "SirGerhard won by resignation"]

1. d4 {[%clk 0:04:54.4]} 1... Nf6 {[%clk 0:04:58.8]} 2. Bg5 {[%clk 0:04:53.9]}
2... Ne4 {[%clk 0:04:57]} 3. Bf4 {[%clk 0:04:53.3]} 3... c5 {[%clk 0:04:56.3]}
4. f3 {[%clk 0:04:52.3]} 4... Qa5+ {[%clk 0:04:53.7]} 5. c3 {[%clk 0:04:50.7]}
5... Nf6 {[%clk 0:04:52.7]} 6. d5 {[%clk 0:04:47.8]} 6... Qb6 {[%clk 0:04:51.5]}
7. Bc1 {[%clk 0:04:45.9]} 7... e6 {[%clk 0:04:49.6]} 8. c4 {[%clk 0:04:42.7]}
8... exd5 {[%clk 0:04:41.5]} 9. cxd5 {[%clk 0:04:42.6]} 9... c4 {[%clk
0:04:40.9]} 10. e4 {[%clk 0:04:35.9]} 10... Bc5 {[%clk 0:04:39.8]} 11. Nh3
{[%clk 0:04:34]} 11... d6 {[%clk 0:04:39]} 12. g3 {[%clk 0:04:18.1]} 12... O-O
{[%clk 0:04:36.1]} 13. Nc3 {[%clk 0:04:16.6]} 13... Re8 {[%clk 0:04:17.8]} 14.
Bg2 {[%clk 0:03:58.5]} 14... Bxh3 {[%clk 0:04:08.7]} 15. Bxh3 {[%clk 0:03:48.9]}
15... Nbd7 {[%clk 0:04:06.8]} 16. Na4 {[%clk 0:03:43.1]} 16... Bb4+ {[%clk
0:04:02.7]} 17. Kf1 {[%clk 0:03:39.5]} 17... Qa6 {[%clk 0:03:59.2]} 18. a3
{[%clk 0:03:32.3]} 18... Ba5 {[%clk 0:03:56.8]} 19. Kg2 {[%clk 0:03:25.5]} 19...
b5 {[%clk 0:03:48.7]} 20. Nc3 {[%clk 0:03:24.1]} 20... Bxc3 {[%clk 0:03:45.8]}
21. bxc3 {[%clk 0:03:24]} 21... Nc5 {[%clk 0:03:43.8]} 22. Bg5 {[%clk
0:03:12.9]} 22... Nfd7 {[%clk 0:03:42.6]} 23. a4 {[%clk 0:02:38.7]} 23... Ne5
{[%clk 0:03:36.4]} 24. axb5 {[%clk 0:02:31.7]} 24... Qxb5 {[%clk 0:03:35.4]} 25.
Be3 {[%clk 0:02:21.3]} 25... Ned3 {[%clk 0:03:25.8]} 26. Qb1 {[%clk 0:02:13.6]}
26... Nb3 {[%clk 0:03:22.7]} 27. Bxa7 {[%clk 0:02:04.8]} 27... Qb7 {[%clk
0:02:57.5]} 28. Ra4 {[%clk 0:01:46.5]} 28... Rxa7 {[%clk 0:02:52.5]} 29. Rxc4
{[%clk 0:01:45.4]} 29... Nbc5 {[%clk 0:02:40.1]} 30. Qxb7 {[%clk 0:01:41.5]}
30... Rxb7 {[%clk 0:02:39.2]} 31. Ra1 {[%clk 0:01:41.1]} 31... Rb2+ {[%clk
0:02:37.9]} 32. Kg1 {[%clk 0:01:40.4]} 32... g6 {[%clk 0:02:30.4]} 33. Bg2
{[%clk 0:01:32.2]} 33... Reb8 {[%clk 0:02:28.6]} 34. f4 {[%clk 0:01:25.2]} 34...
Rb1+ {[%clk 0:02:15.8]} 35. Rxb1 {[%clk 0:01:23.9]} 35... Rxb1+ {[%clk
0:02:14.9]} 36. Bf1 {[%clk 0:01:23.8]} 36... Re1 {[%clk 0:02:11.7]} 37. Kg2
{[%clk 0:01:17.2]} 37... Nb2 {[%clk 0:02:08.7]} 38. Rb4 {[%clk 0:01:15]} 38...
Nd1 {[%clk 0:02:08]} 39. Rb8+ {[%clk 0:01:10]} 39... Kg7 {[%clk 0:02:06.7]} 40.
e5 {[%clk 0:01:04.9]} 40... dxe5 {[%clk 0:02:01.7]} 41. d6 {[%clk 0:01:02.2]}
41... exf4 {[%clk 0:01:58.1]} 42. Rc8 {[%clk 0:00:55]} 42... Ne3+ {[%clk
0:01:56]} 43. Kh3 {[%clk 0:00:51.7]} 43... Rxf1 {[%clk 0:01:52.7]} 44. Rxc5
{[%clk 0:00:50.2]} 44... Rd1 {[%clk 0:01:45.3]} 45. gxf4 {[%clk 0:00:45.3]}
45... Rxd6 {[%clk 0:01:44.4]} 46. Kg3 {[%clk 0:00:43.7]} 46... Rd3 {[%clk
0:01:42.6]} 47. Rc8 {[%clk 0:00:40.6]} 47... Nd5+ {[%clk 0:01:39.6]} 48. Kg4
{[%clk 0:00:39.6]} 48... h5+ {[%clk 0:01:37]} 49. Kh4 {[%clk 0:00:35.7]} 49...
Nxf4 {[%clk 0:01:35.6]} 50. Rc4 {[%clk 0:00:31.5]} 50... Ng2+ {[%clk 0:01:33.8]}
0-1

[Event "Live Chess"]
[Site "Chess.com"]
[Date "2024.06.01"]
[Round "-"]
[White "KwikPhoenix"]
[Black "MagnersCarlsberg2870"]
[Result "1-0"]
[WhiteElo "2465"]
[BlackElo "1892"]
[TimeControl "300"]
[EndTime "9:18:20 PDT"]
[Termination "KwikPhoenix won by checkmate"]

1. Nc3 {[%clk 0:04:57.1]} 1... Nf6 {[%clk 0:04:58.2]} 2. e4 {[%clk 0:04:54.7]}
2... d5 {[%clk 0:04:54.5]} 3. exd5 {[%clk 0:04:49.3]} 3... Nxd5 {[%clk
0:04:53.5]} 4. Nf3 {[%clk 0:04:48.8]} 4... Nxc3 {[%clk 0:04:52.5]} 5. bxc3
{[%clk 0:04:48.7]} 5... Bg4 {[%clk 0:04:50.4]} 6. d4 {[%clk 0:04:47.7]} 6... e6
{[%clk 0:04:48.9]} 7. h3 {[%clk 0:04:46.5]} 7... Bh5 {[%clk 0:04:46.6]} 8. Bf4
{[%clk 0:04:43.3]} 8... Bd6 {[%clk 0:04:45.4]} 9. Bxd6 {[%clk 0:04:40.9]} 9...
Qxd6 {[%clk 0:04:44.3]} 10. Rb1 {[%clk 0:04:40.5]} 10... b6 {[%clk 0:04:42.8]}
11. Be2 {[%clk 0:04:33.3]} 11... O-O {[%clk 0:04:41.6]} 12. O-O {[%clk
0:04:32.9]} 12... c5 {[%clk 0:04:38.7]} 13. Bd3 {[%clk 0:04:20.3]} 13... Nd7
{[%clk 0:04:30]} 14. dxc5 {[%clk 0:04:02.1]} 14... Qxc5 {[%clk 0:04:25.9]} 15.
Rb5 {[%clk 0:04:00.4]} 15... Bxf3 {[%clk 0:04:22.1]} 16. Qxf3 {[%clk 0:03:59.7]}
16... Qe7 {[%clk 0:04:16]} 17. Re1 {[%clk 0:03:47.8]} 17... Nf6 {[%clk
0:04:14.3]} 18. Rg5 {[%clk 0:03:42.5]} 18... h6 {[%clk 0:03:59]} 19. Rg3 {[%clk
0:03:40.5]} 19... Rac8 {[%clk 0:03:47.7]} 20. Qf4 {[%clk 0:03:19.3]} 20... Nd5
{[%clk 0:03:43.1]} 21. Qxh6 {[%clk 0:03:08.6]} 21... Qf6 {[%clk 0:03:38.2]} 22.
Qh7# {[%clk 0:03:06.6]} 1-0